bitfinex/quotes_BTCUSD_20240908
["timestamp","ask_amount","ask_price","bid_price","bid_amount"]
[1725798466767,0.004816,54563.0,54562.0,0.145]
[1725798467002,0.000816,54563.0,54562.0,0.145]
[1725798467217,0.004816,54563.0,54562.0,0.145]
[1725798467449,0.008816,54563.0,54562.0,0.145]
[1725798467671,0.004816,54563.0,54562.0,0.145]
[1725798468134,0.006816,54563.0,54562.0,0.145]
[1725798468567,0.002816,54563.0,54562.0,0.145]
[1725798468793,0.004816,54563.0,54562.0,0.145]
[1725798473375,0.02894673,54563.0,54562.0,0.145]
[1725798473582,0.02694673,54563.0,54562.0,0.145]
[1725798473783,0.02494673,54563.0,54562.0,0.145]
[1725798474015,0.000816,54563.0,54562.0,0.145]
[1725798474228,0.004816,54563.0,54562.0,0.145]
[1725798474941,0.008816,54563.0,54562.0,0.146632]
[1725798481869,1.56736394,54563.0,54557.0,0.001632]
[1725798482139,1.56736394,54563.0,54550.0,0.28435429]
[1725798482140,0.05465131,54559.0,54550.0,0.28435429]
[1725798482363,0.05464948,54555.0,54554.0,0.14705934]
[1725798482582,0.289078,54555.0,54554.0,0.14208277]
[1725798482817,0.74641998,54555.0,54554.0,0.14208277]
[1725798483032,0.60311842,54555.0,54554.0,0.14208277]
[1725798483267,0.17169642,54555.0,54554.0,0.14208277]
[1725798483501,0.1,54555.0,54554.0,0.07405974]
[1725798483794,0.1637,54555.0,54554.0,0.07405974]
[1725798484266,0.24668201,54555.0,54554.0,0.07405974]
[1725798484772,0.24768201,54555.0,54554.0,0.07405974]
[1725798486125,0.38252201,54555.0,54554.0,0.07405974]
[1725798486370,0.30054,54555.0,54554.0,0.07405974]
[1725798486858,0.35518798,54555.0,54554.0,0.07405974]
[1725798487088,0.0831,54554.0,54550.0,0.28435429]
[1725798487315,0.05467024,54551.0,54550.0,0.19607154]
[1725798487520,0.872498,54551.0,54550.0,0.19607154]
[1725798487736,1.1222632,54551.0,54550.0,0.19607154]
[1725798488371,1.20425688,54551.0,54550.0,0.19607154]
[1725798488582,1.20425688,54551.0,54550.0,0.19107154]
[1725798489000,0.95045388,54551.0,54550.0,0.19107154]
[1725798489229,0.95045388,54551.0,54550.0,0.1579561]
[1725798489643,0.61151027,54551.0,54550.0,0.1579561]
[1725798489882,0.87879287,54551.0,54550.0,0.1183961]
[1725798490312,0.79966287,54551.0,54550.0,0.1183961]
[1725798490775,0.08199368,54553.0,54550.0,0.1183961]
[1725798491010,0.05467399,54551.0,54550.0,0.1183961]
[1725798491945,0.05467399,54551.0,54550.0,0.1798961]
[1725798492203,0.15467399,54552.0,54550.0,0.1798961]
[1725798492426,0.1,54552.0,54550.0,0.1798961]
[1725798492658,0.05467399,54553.0,54550.0,0.1798961]
[1725798493162,0.71660713,54552.0,54550.0,0.0011161]
[1725798493389,1.04023699,54551.0,54550.0,0.0011161]
[1725798493839,1.02185199,54551.0,54550.0,0.0011161]
[1725798494353,1.02185199,54551.0,54544.0,0.15163999]
[1725798494576,0.11935177,54547.0,54544.0,0.06105442]
[1725798494798,0.08399368,54549.0,54531.0,0.4692]
[1725798494799,0.0667,54544.0,54531.0,0.4692]
[1725798495005,3.73336614,54546.0,54535.0,0.03067451]
[1725798495006,0.05464299,54536.0,54535.0,0.03067451]
[1725798495271,0.06830374,54536.0,54535.0,0.03067451]
[1725798495535,0.05464299,54538.0,54536.0,0.0615]
[1725798495790,0.05464299,54543.0,54538.0,0.0615]
[1725798495994,0.05464299,54546.0,54541.0,0.0615]
[1725798496242,0.1,54550.0,54542.0,0.14056656]
[1725798496243,0.02693356,54543.0,54542.0,0.14056656]
[1725798496460,0.18196449,54550.0,54535.0,0.03067451]
[1725798496461,0.05464299,54550.0,54545.0,0.1369]
[1725798496723,0.05464299,54550.0,54536.0,0.00366645]
[1725798496724,0.05464299,54550.0,54537.0,0.0754]
[1725798496929,0.08209749,54550.0,54539.0,0.0754]
[1725798497155,0.005,54546.0,54541.0,0.0754]
[1725798497367,0.005,54546.0,54543.0,0.0754]
[1725798497583,0.005,54546.0,54545.0,0.002]
[1725798498092,0.005,54546.0,54545.0,0.0774]
[1725798498509,0.0274545,54550.0,54549.0,0.002]
[1725798498727,0.0274545,54550.0,54545.0,0.0754]
[1725798498728,0.0538607,54550.0,54545.0,0.0774]
[1725798498937,0.06064299,54550.0,54545.0,0.0754]
[1725798499150,0.001,54546.0,54545.0,0.0754]
[1725798499600,0.002,54546.0,54545.0,0.0774]
[1725798499812,0.05464299,54550.0,54545.0,0.0754]
[1725798500025,0.02672556,54549.0,54545.0,0.0754]
[1725798500448,0.006,54550.0,54545.0,0.0754]
[1725798500668,0.006,54550.0,54545.0,0.077032]
[1725798501520,0.08529106,54551.0,54545.0,0.077032]
[1725798501751,0.001,54546.0,54545.0,0.077032]
[1725798502049,0.003,54546.0,54545.0,0.077032]
[1725798502279,0.08124975,54551.0,54545.0,0.077032]
[1725798502280,0.05459388,54550.0,54545.0,0.077032]
[1725798502501,0.631893,54549.0,54545.0,0.077032]
[1725798502714,0.6358852,54549.0,54545.0,0.001632]
[1725798502933,1.632284,54548.0,54545.0,0.001632]
[1725798503145,0.17416509,54547.0,54545.0,0.001632]
[1725798503374,0.002,54546.0,54545.0,0.001632]
[1725798503581,0.15459388,54548.0,54545.0,0.001632]
[1725798503792,0.1,54548.0,54545.0,0.001632]
[1725798504017,0.06358608,54549.0,54545.0,0.001632]
[1725798504248,2.04462777,54548.0,54545.0,0.001632]
[1725798504493,0.1,54547.0,54545.0,0.001632]
[1725798504942,0.15459388,54547.0,54545.0,0.001632]
[1725798505154,0.05459388,54546.0,54545.0,0.001632]
[1725798505855,0.18189082,54547.0,54545.0,0.001632]
[1725798506093,0.04887062,54546.0,54545.0,0.001632]
[1725798506309,0.377982,54546.0,54545.0,0.001632]
[1725798506524,0.53253552,54546.0,54545.0,0.001632]
[1725798506741,0.479982,54546.0,54545.0,0.001632]
[1725798507183,0.56180852,54546.0,54545.0,0.001632]
[1725798508084,0.51403813,54546.0,54545.0,0.067932]
[1725798508290,0.40903813,54546.0,54545.0,0.069932]
[1725798508509,0.4931734,54546.0,54545.0,0.069932]
[1725798508736,0.43863527,54546.0,54545.0,0.069932]
[1725798508947,0.43963527,54546.0,54545.0,0.069932]
[1725798509169,0.43963527,54546.0,54545.0,0.067932]
[1725798509623,0.43963527,54546.0,54545.0,0.069932]
[1725798509861,0.4941734,54546.0,54545.0,0.067932]
[1725798510066,0.4941734,54546.0,54545.0,0.001632]
[1725798511197,0.4941697,54546.0,54545.0,0.001632]
[1725798512057,0.2416697,54546.0,54545.0,0.001632]
[1725798512263,0.15753443,54546.0,54545.0,0.001632]
[1725798512484,0.52244043,54546.0,54545.0,0.003632]
[1725798512691,0.467906,54546.0,54545.0,0.003632]
[1725798512901,0.5224428,54546.0,54545.0,0.003632]
[1725798513113,0.5232588,54546.0,54545.0,0.003632]
[1725798513349,0.46770534,54546.0,54545.0,0.003632]
[1725798513581,0.46770534,54546.0,54545.0,0.001632]
[1725798514219,0.3826588,54546.0,54545.0,0.001632]
[1725798514716,0.38266433,54546.0,54545.0,0.003632]
[1725798514949,0.328122,54546.0,54545.0,0.003632]
[1725798515180,0.328122,54546.0,54545.0,0.001632]
[1725798515637,0.38547548,54546.0,54545.0,0.001632]
[1725798515866,0.44002294,54546.0,54545.0,0.001632]
[1725798516072,0.38547548,54546.0,54545.0,0.001632]
[1725798516280,0.44002294,54546.0,54545.0,0.001632]
[1725798517597,0.46729667,54546.0,54545.0,0.001632]
[1725798518066,0.44003755,54546.0,54545.0,0.003632]
[1725798518294,0.328122,54546.0,54545.0,0.003632]
[1725798518508,0.38268799,54546.0,54545.0,0.003632]
[1725798518729,0.328122,54546.0,54545.0,0.003632]
[1725798518981,0.40994319,54546.0,54545.0,0.140832]
[1725798519235,0.47548387,54546.0,54545.0,0.140832]
[1725798519474,0.47548387,54546.0,54545.0,0.138832]
[1725798519692,0.47548387,54546.0,54545.0,0.076932]
[1725798519939,0.47947607,54546.0,54545.0,0.001632]
[1725798520384,0.39765488,54546.0,54545.0,0.001632]
[1725798521183,0.50681602,54546.0,54545.0,0.001632]
[1725798521572,1.94033702,54546.0,54545.0,0.001632]
[1725798521799,1.42552702,54546.0,54545.0,0.001632]
[1725798522039,0.96100602,54546.0,54545.0,0.001632]
[1725798522259,0.96100602,54546.0,54545.0,0.138832]
[1725798522260,0.24425963,54546.0,54545.0,0.138832]
[1725798522511,0.18572543,54546.0,54545.0,0.138832]
[1725798522970,0.003816,54546.0,54545.0,0.138832]
[1725798523212,0.18572338,54546.0,54545.0,0.138832]
[1725798523451,0.18572338,54546.0,54545.0,0.140832]
[1725798524346,0.21302712,54546.0,54545.0,0.140832]
[1725798525243,0.103816,54546.0,54545.0,0.140832]
[1725798526408,0.24046562,54546.0,54545.0,0.138832]
[1725798526655,0.12786256,54546.0,54545.0,0.140832]
[1725798526900,0.103816,54546.0,54545.0,0.140832]
[1725798527657,0.24046562,54546.0,54545.0,0.140832]
[1725798527740,0.103816,54546.0,54545.0,0.140832]
[1725798527956,0.003816,54546.0,54545.0,0.140832]
[1725798528177,0.103816,54546.0,54545.0,0.140832]
[1725798528426,0.13059556,54546.0,54545.0,0.140832]
[1725798529120,0.103816,54546.0,54545.0,0.140832]
[1725798529349,0.003816,54546.0,54545.0,0.140832]
[1725798530244,0.10939331,54547.0,54546.0,0.002]
[1725798530890,0.10939331,54548.0,54546.0,0.002]
[1725798531128,0.10939331,54547.0,54546.0,0.002]
[1725798531341,0.13674164,54548.0,54546.0,0.002]
[1725798531571,0.10941606,54547.0,54546.0,0.002]
[1725798531795,0.10941743,54547.0,54546.0,0.002]
[1725798532009,0.17405314,54547.0,54546.0,0.002]
[1725798532219,0.103,54547.0,54546.0,0.002]
[1725798532436,0.21443174,54547.0,54546.0,0.002]
[1725798533145,0.105,54547.0,54546.0,0.002]
[1725798533363,0.21443174,54547.0,54546.0,0.002]
[1725798533574,0.25224467,54547.0,54546.0,0.002]
[1725798534453,0.14281293,54547.0,54546.0,0.002]
[1725798534882,0.25225832,54547.0,54546.0,0.002]
[1725798535135,0.21444539,54547.0,54546.0,0.002]
[1725798535815,0.21444539,54547.0,54545.0,0.138832]
[1725798536025,0.23674164,54546.0,54545.0,0.138832]
[1725798536230,0.1,54546.0,54545.0,0.138832]
[1725798536446,0.12686976,54546.0,54545.0,0.001632]
[1725798536733,0.13086196,54546.0,54545.0,0.001632]
[1725798536968,0.1039922,54546.0,54545.0,0.001632]
[1725798537178,0.0039922,54546.0,54545.0,0.001632]
[1725798538094,0.0048072,54546.0,54545.0,0.001632]
[1725798538527,0.0058072,54546.0,54545.0,0.001632]
[1725798538746,0.0068072,54546.0,54545.0,0.001632]
[1725798538947,0.002815,54546.0,54545.0,0.001632]
[1725798539162,0.03156348,54546.0,54545.0,0.001632]
[1725798539825,0.13964794,54546.0,54545.0,0.001632]
[1725798540049,0.23964794,54546.0,54545.0,0.001632]
[1725798540269,0.26700774,54546.0,54545.0,0.001632]
[1725798540774,0.102815,54546.0,54545.0,0.145532]
[1725798541244,0.13221137,54546.0,54545.0,0.145532]
[1725798541451,0.102815,54546.0,54545.0,0.147532]
[1725798541667,0.102815,54546.0,54545.0,0.145532]
[1725798541904,0.102815,54546.0,54545.0,0.147532]
[1725798542117,0.002815,54546.0,54545.0,0.147532]
[1725798542352,0.1123313,54546.0,54545.0,0.1622852]
[1725798542592,0.001815,54546.0,54545.0,0.147532]
[1725798542800,0.000815,54546.0,54545.0,0.147532]
[1725798543058,0.08214317,54551.0,54550.0,0.002]
[1725798543059,0.05475138,54551.0,54550.0,0.002]
[1725798543285,0.05475138,54555.0,54552.0,0.1439]
[1725798543491,0.05475138,54558.0,54555.0,0.0638]
[1725798543697,0.05475138,54559.0,54558.0,0.001]
[1725798543916,0.05475138,54560.0,54556.0,0.0628]
[1725798544133,0.05475138,54560.0,54557.0,0.0801]
[1725798544550,0.13691696,54563.0,54557.0,0.0801]
[1725798544551,0.05475138,54562.0,54557.0,0.0801]
[1725798545297,0.02740066,54563.0,54559.0,0.0801]
[1725798545298,0.000816,54563.0,54559.0,0.0801]
[1725798545512,0.02874007,54561.0,54559.0,0.0791]
[1725798545727,0.02874007,54561.0,54559.0,0.0781]
[1725798545955,0.1,54562.0,54559.0,0.0781]
[1725798546916,0.000816,54563.0,54559.0,0.0781]
[1725798547154,0.000816,54563.0,54560.0,0.06746521]
[1725798547394,0.000816,54563.0,54560.0,0.0638]
[1725798548769,0.000816,54563.0,54561.0,0.0801]
[1725798549228,0.02955491,54563.0,54561.0,0.0801]
[1725798550107,0.02955491,54563.0,54561.0,0.0831]
[1725798550328,0.02955491,54563.0,54561.0,0.0861]
[1725798550569,0.08189628,54571.0,54561.0,0.0861]
[1725798550570,0.05455663,54571.0,54561.0,0.0861]
[1725798550833,0.04128067,54571.0,54561.0,0.0861]
[1725798551046,0.00393216,54571.0,54561.0,0.0861]
[1725798551256,0.05455663,54572.0,54561.0,0.0861]
[1725798551483,0.05455663,54573.0,54561.0,0.0861]
[1725798551693,0.08084261,54573.0,54561.0,0.0861]
[1725798551914,0.05455663,54573.0,54561.0,0.0861]
[1725798552142,0.05455663,54573.0,54561.0,0.0831]
[1725798552383,0.02216129,54572.0,54561.0,0.0801]
[1725798552618,0.006,54571.0,54561.0,0.0811]
[1725798552854,0.013,54571.0,54561.0,0.0821]
[1725798553083,0.013,54571.0,54548.0,0.0036652]
[1725798553084,0.1,54573.0,54564.0,0.0664]
[1725798553368,0.018,54573.0,54565.0,0.0766]
[1725798553589,0.009,54573.0,54565.0,0.0766]
[1725798553783,0.03026728,54573.0,54565.0,0.0766]
[1725798554745,0.006,54571.0,54565.0,0.0766]
[1725798555629,0.013,54571.0,54565.0,0.0766]
[1725798555853,0.006,54571.0,54565.0,0.0766]
[1725798556091,0.02873849,54570.0,54565.0,0.0766]
[1725798556310,0.02873849,54570.0,54565.0,0.0776]
[1725798556946,0.02873849,54570.0,54565.0,0.0766]
[1725798557161,0.00397156,54569.0,54565.0,0.0766]
[1725798557386,0.00397156,54569.0,54565.0,0.0776]
[1725798558794,0.00397156,54569.0,54565.0,0.0766]
[1725798559030,0.00897156,54569.0,54565.0,0.0766]
[1725798559248,0.02626929,54569.0,54565.0,0.0766]
[1725798559735,0.03026929,54569.0,54565.0,0.0766]
[1725798562137,0.03026929,54569.0,54565.0,0.07823]
[1725798564469,0.04171031,54569.0,54565.0,0.07823]
[1725798564692,0.03773875,54569.0,54565.0,0.07823]
[1725798566137,0.03773875,54569.0,54566.0,0.0664]
[1725798566380,0.03773875,54569.0,54567.0,0.0766]
[1725798566848,0.009,54569.0,54567.0,0.0766]
[1725798567316,0.000815,54572.0,54568.0,0.0664]
[1725798567560,0.004,54569.0,54568.0,0.0664]
[1725798567799,0.004,54569.0,54568.0,0.143]
[1725798568250,0.009,54569.0,54568.0,0.143]
[1725798568925,0.005,54569.0,54568.0,0.143]
[1725798569139,0.009,54569.0,54568.0,0.143]
[1725798570039,0.000815,54572.0,54566.0,0.0826]
[1725798570302,0.000815,54572.0,54567.0,0.06556503]
[1725798570539,0.005,54569.0,54568.0,0.1445]
[1725798570761,0.009,54569.0,54568.0,0.1445]
[1725798571219,0.004,54569.0,54568.0,0.1445]
[1725798571439,0.004,54569.0,54568.0,0.159113]
[1725798572090,0.008815,54572.0,54569.0,0.1445]
[1725798572351,0.000815,54572.0,54569.0,0.1445]
[1725798572560,0.008815,54572.0,54569.0,0.1445]
[1725798572984,0.000815,54572.0,54571.0,0.1445]
[1725798573423,0.001815,54572.0,54571.0,0.1445]
[1725798573927,0.001815,54572.0,54571.0,0.1395]
[1725798574139,0.03054939,54572.0,54571.0,0.1395]
[1725798574388,0.000816,54577.0,54572.0,0.0609]
[1725798574608,0.000816,54577.0,54573.0,0.00366394]
[1725798575539,0.000816,54577.0,54573.0,0.00266394]
[1725798575750,0.001816,54577.0,54574.0,0.00366381]
[1725798576212,0.002816,54577.0,54574.0,0.00366381]
[1725798576900,0.000816,54577.0,54575.0,0.0826]
[1725798577128,0.000816,54577.0,54576.0,0.00366378]
[1725798577344,0.001816,54577.0,54576.0,0.08626378]
[1725798577527,0.001816,54577.0,54576.0,0.14816378]
[1725798577978,0.002816,54577.0,54576.0,0.14816378]
[1725798578186,0.001816,54577.0,54576.0,0.14816378]
[1725798578399,0.003816,54577.0,54576.0,0.1585]
[1725798578606,0.003816,54577.0,54576.0,0.1621638]
[1725798579070,0.002816,54577.0,54576.0,0.1621638]
[1725798579299,0.003816,54577.0,54576.0,0.1691638]
[1725798579726,0.003816,54577.0,54576.0,0.1655]
[1725798581702,0.00780807,54577.0,54576.0,0.1655]
[1725798581912,0.003816,54577.0,54576.0,0.1655]
[1725798582546,0.002816,54577.0,54576.0,0.1585]
[1725798582753,0.000816,54577.0,54576.0,0.1445]
[1725798582957,0.002816,54577.0,54576.0,0.1445]
[1725798583391,0.000816,54577.0,54576.0,0.0826]
[1725798583611,0.000816,54577.0,54565.0,0.00163]
[1725798583612,0.000816,54577.0,54573.0,0.0619]
[1725798584284,0.002816,54577.0,54573.0,0.0619]
[1725798584507,0.000816,54577.0,54576.0,1.31]
[1725798584951,0.002816,54577.0,54576.0,1.31]
[1725798585434,0.004816,54577.0,54576.0,1.31]
[1725798585662,0.002816,54577.0,54576.0,1.31]
[1725798585878,0.000816,54577.0,54576.0,1.31]
[1725798586091,0.004816,54577.0,54576.0,1.31]
[1725798586570,0.03354757,54577.0,54576.0,1.31]
[1725798586824,0.004816,54577.0,54576.0,1.31]
[1725798589757,0.03354742,54577.0,54576.0,1.31]
[1725798590202,0.03354742,54577.0,54576.0,1.453]
[1725798592038,0.03154742,54577.0,54576.0,1.453]
[1725798592250,0.02954742,54577.0,54576.0,1.453]
[1725798592473,0.03054742,54577.0,54576.0,1.453]
[1725798593544,0.03154742,54577.0,54576.0,1.453]
[1725798593760,0.03553961,54577.0,54576.0,1.453]
[1725798594304,0.03054742,54577.0,54576.0,1.453]
[1725798594532,0.03154742,54577.0,54576.0,1.453]
[1725798594949,0.03353961,54577.0,54576.0,1.453]
[1725798595150,0.03353961,54577.0,54576.0,1.455]
[1725798595353,0.03453961,54577.0,54576.0,1.455]
[1725798595784,0.03353961,54577.0,54576.0,1.455]
[1725798596158,0.03353961,54577.0,54576.0,1.457]
[1725798596360,0.02954742,54577.0,54576.0,1.457]
[1725798596962,0.000816,54577.0,54576.0,1.457]
[1725798599528,0.000816,54577.0,54576.0,1.314]
[1725798599742,0.06480819,54577.0,54576.0,1.314]
[1725798599952,0.09860812,54577.0,54576.0,1.314]
[1725798600157,0.30775846,54577.0,54576.0,1.314]
[1725798600373,0.19860812,54577.0,54576.0,1.314]
[1725798600583,0.19860812,54577.0,54576.0,1.31]
[1725798601162,0.66791812,54577.0,54576.0,1.11361233]
[1725798601366,0.74651812,54577.0,54576.0,1.11261233]
[1725798601571,0.76925477,54577.0,54576.0,1.11161233]
[1725798601782,0.79725477,54577.0,54576.0,1.11361233]
[1725798601990,0.78325477,54577.0,54576.0,1.11261233]
[1725798602404,0.76925477,54577.0,54576.0,1.07189233]
[1725798602960,0.78925398,54577.0,54576.0,0.51923688]
[1725798603179,0.78925398,54577.0,54576.0,0.19031039]
[1725798603405,0.79125398,54577.0,54576.0,0.07172173]
[1725798603767,0.79125398,54577.0,54576.0,0.05887173]
[1725798603974,0.81925398,54577.0,54576.0,0.05887173]
[1725798604316,0.80325398,54577.0,54576.0,0.05887173]
[1725798604631,0.58364306,54577.0,54576.0,0.05887173]
[1725798604850,0.01,54571.0,54568.0,0.00163]
[1725798605061,1.74808847,54570.0,54568.0,0.00163]
[1725798605271,1.427698,54569.0,54568.0,0.00163]
[1725798605509,1.450698,54569.0,54568.0,0.00163]
[1725798605732,1.27368607,54569.0,54568.0,0.00163]
[1725798606958,1.37368607,54569.0,54568.0,0.00163]
[1725798607163,1.51000287,54569.0,54568.0,0.00163]
[1725798607582,1.38768607,54569.0,54568.0,0.00163]
[1725798607801,1.59700287,54569.0,54568.0,0.00163]
[1725798608034,1.61100287,54569.0,54568.0,0.00163]
[1725798608249,1.62500287,54569.0,54568.0,0.00163]
[1725798608496,1.62500287,54569.0,54562.0,0.4692]
[1725798608497,0.01,54566.0,54562.0,0.44671746]
[1725798608706,0.08173799,54564.0,54550.0,1.14472582]
[1725798608934,0.05449224,54562.0,54550.0,0.69800836]
[1725798609156,0.20352034,54561.0,54550.0,0.1437]
[1725798609415,0.1,54560.0,54550.0,0.1437]
[1725798609666,0.0174,54559.0,54550.0,0.1437]
[1725798610118,0.01844003,54559.0,54550.0,0.1437]
[1725798610787,0.11844003,54559.0,54550.0,0.1437]
[1725798611020,0.02874422,54557.0,54550.0,0.1437]
[1725798611229,0.00104003,54556.0,54550.0,0.1437]
[1725798612989,0.02874422,54557.0,54550.0,0.1437]
[1725798612990,0.02978425,54557.0,54550.0,0.1437]
[1725798613224,0.02874422,54557.0,54550.0,0.1437]
[1725798613442,0.04274422,54557.0,54550.0,0.1437]
[1725798613664,0.02690375,54556.0,54550.0,0.1437]
[1725798613877,0.75057978,54556.0,54547.0,0.0655]
[1725798614113,0.80494,54555.0,54547.0,0.0655]
[1725798614328,0.77221303,54554.0,54547.0,0.0655]
[1725798614546,0.77221303,54554.0,54546.0,0.0826]
[1725798614547,0.0941861,54553.0,54546.0,0.0826]
[1725798614693,0.05547066,54554.0,54546.0,0.0826]
[1725798615162,0.00104003,54554.0,54546.0,0.0826]
[1725798615504,0.15443063,54555.0,54546.0,0.0826]
[1725798615719,0.60008003,54554.0,54546.0,0.0826]
[1725798616085,0.19058046,54553.0,54546.0,0.0826]
[1725798616319,0.1,54553.0,54546.0,0.0826]
[1725798616945,0.01404003,54554.0,54546.0,0.0826]
[1725798617186,0.00104003,54554.0,54546.0,0.0826]
[1725798617405,0.025,54553.0,54546.0,0.0826]
[1725798618040,0.013,54553.0,54546.0,0.0826]
[1725798618258,0.01409438,54552.0,54546.0,0.0826]
[1725798619669,0.01409438,54552.0,54544.0,0.0655]
[1725798619893,0.03253441,54552.0,54544.0,0.0655]
[1725798620125,0.0287471,54551.0,54544.0,0.0655]
[1725798621498,0.00104003,54550.0,54544.0,0.0655]
[1725798621723,0.01832815,54549.0,54546.0,0.001628]
[1725798623675,0.02632815,54549.0,54546.0,0.001628]
[1725798623890,0.008,54549.0,54546.0,0.001628]
[1725798624113,0.016,54549.0,54546.0,0.001628]
[1725798627250,0.016,54549.0,54547.0,0.1386]
[1725798628101,0.016,54549.0,54546.0,0.001628]
[1725798628324,0.016,54549.0,54548.0,0.1386]
[1725798628540,0.008,54549.0,54548.0,0.1386]
[1725798628752,0.016,54549.0,54548.0,0.1386]
[1725798629200,0.008,54549.0,54547.0,0.0649]
[1725798629684,0.016,54549.0,54547.0,0.0649]
[1725798629900,0.008,54549.0,54547.0,0.0649]
[1725798630097,0.0287471,54549.0,54547.0,0.0649]
[1725798630339,0.0447471,54549.0,54546.0,0.001628]
[1725798630792,0.0367471,54549.0,54546.0,0.001628]
[1725798631017,0.0287471,54549.0,54546.0,0.001628]
[1725798631708,0.0367471,54549.0,54546.0,0.001628]
[1725798631924,0.0447471,54549.0,54546.0,0.001628]
[1725798633252,0.0367471,54549.0,54546.0,0.001628]
[1725798633950,0.0447471,54549.0,54546.0,0.001628]
[1725798634164,0.0447471,54549.0,54547.0,0.0649]
[1725798635270,0.0367471,54549.0,54547.0,0.0649]
[1725798635473,0.0447471,54549.0,54547.0,0.0649]
[1725798636358,0.0367471,54549.0,54548.0,0.0795]
[1725798636807,0.016,54549.0,54546.0,0.001628]
[1725798637215,0.008,54549.0,54546.0,0.001628]
[1725798637472,0.0349,54551.0,54546.0,0.001628]
[1725798637682,0.008,54549.0,54546.0,0.001628]
[1725798637909,0.016,54549.0,54546.0,0.001628]
[1725798638119,0.023004,54550.0,54546.0,0.001628]
[1725798638571,0.008,54549.0,54546.0,0.001628]
[1725798639480,0.016,54549.0,54546.0,0.001628]
[1725798640155,0.03674751,54549.0,54546.0,0.001628]
[1725798641262,0.04474751,54549.0,54546.0,0.001628]
[1725798641491,0.06511666,54549.0,54546.0,0.001628]
[1725798643610,0.05436108,54548.0,54546.0,0.001628]
[1725798644070,0.15436108,54548.0,54546.0,0.001628]
[1725798644512,0.08154162,54547.0,54546.0,0.001628]
[1725798644738,0.18154162,54547.0,54546.0,0.001628]
[1725798644972,0.24046993,54547.0,54546.0,0.001628]
[1725798645650,0.15892831,54547.0,54546.0,0.001628]
[1725798646081,0.1,54547.0,54546.0,0.001628]
[1725798646519,0.23590271,54547.0,54546.0,0.001628]
[1725798646740,0.24090271,54547.0,54546.0,0.001628]
[1725798646949,0.24690271,54547.0,54546.0,0.001628]
[1725798648739,0.111,54547.0,54546.0,0.001628]
[1725798648966,0.03840833,54547.0,54546.0,0.001628]
[1725798649188,0.13840833,54547.0,54546.0,0.001628]
[1725798650118,0.16715627,54547.0,54546.0,0.001628]
[1725798651149,0.13974794,54547.0,54546.0,0.001628]
[1725798651858,0.03974794,54547.0,54546.0,0.001628]
[1725798653591,0.03974794,54547.0,54546.0,0.154928]
[1725798655997,0.13974794,54547.0,54546.0,0.154928]
[1725798656427,0.30369402,54547.0,54546.0,0.154928]
[1725798656626,0.30531548,54547.0,54546.0,0.154928]
[1725798656838,0.1413694,54547.0,54546.0,0.154928]
[1725798657101,0.17511273,54547.0,54546.0,0.154928]
[1725798657307,0.27511273,54547.0,54546.0,0.154928]
[1725798657987,0.111,54547.0,54546.0,0.154928]
[1725798660172,0.1397475,54547.0,54546.0,0.154928]
[1725798661012,0.13683893,54547.0,54546.0,0.154928]
[1725798661262,0.13683893,54548.0,54546.0,0.154928]
[1725798662951,0.14283893,54548.0,54546.0,0.154928]
[1725798663159,0.1,54547.0,54546.0,0.154928]
[1725798663583,0.1,54547.0,54546.0,0.155928]
[1725798663794,0.1,54547.0,54546.0,0.154928]
[1725798664213,0.1,54547.0,54546.0,0.155928]
[1725798664665,0.1,54547.0,54546.0,0.154928]
[1725798664887,0.13005862,54547.0,54546.0,0.154928]
[1725798665621,0.103,54547.0,54546.0,0.154928]
[1725798666053,0.107,54547.0,54546.0,0.154928]
[1725798666720,0.003,54547.0,54546.0,0.154928]
[1725798667177,0.004,54547.0,54546.0,0.154928]
[1725798667614,0.002,54547.0,54546.0,0.154928]
[1725798667832,0.0547291,54551.0,54548.0,0.1533]
[1725798668077,0.0547291,54551.0,54546.0,0.001628]
[1725798668078,0.0547291,54551.0,54547.0,0.1523]
[1725798668297,0.0547291,54551.0,54547.0,0.0688]
[1725798669593,0.0547291,54551.0,54547.0,0.0668]
[1725798669819,0.0547291,54551.0,54547.0,0.0658]
[1725798670287,0.03612737,54551.0,54547.0,0.0668]
[1725798670521,0.02874535,54551.0,54547.0,0.0688]
[1725798670727,0.02874535,54551.0,54547.0,0.0658]
[1725798671209,0.0547291,54550.0,54548.0,0.0763]
[1725798673202,0.08209492,54549.0,54548.0,0.0763]
[1725798673394,0.18209492,54549.0,54548.0,0.0763]
[1725798674526,0.12780781,54549.0,54548.0,0.0763]
[1725798674760,0.14571289,54549.0,54548.0,0.0763]
[1725798675902,0.14571289,54549.0,54547.0,0.0658]
[1725798676120,0.18199801,54548.0,54547.0,0.0658]
[1725798677879,0.18599801,54548.0,54547.0,0.0658]
[1725798678095,0.23776908,54548.0,54547.0,0.0658]
[1725798678966,0.2651043,54548.0,54547.0,0.0658]
[1725798679179,0.15577107,54548.0,54547.0,0.0658]
[1725798679384,0.108,54548.0,54546.0,0.001628]
[1725798679591,0.08198716,54547.0,54546.0,0.001628]
[1725798679795,0.108,54548.0,54546.0,0.001628]
[1725798679796,0.21733323,54548.0,54546.0,0.001628]
[1725798680015,0.02874835,54547.0,54546.0,0.001628]
[1725798680240,0.06702316,54547.0,54546.0,0.001628]
[1725798680916,0.02874835,54547.0,54546.0,0.001628]
[1725798681162,0.11073542,54547.0,54546.0,0.001628]
[1725798681370,0.21073542,54547.0,54546.0,0.001628]
[1725798681589,0.21373542,54547.0,54546.0,0.001628]
[1725798681825,0.21673542,54547.0,54546.0,0.001628]
[1725798682496,0.26309044,54547.0,54546.0,0.001628]
[1725798682931,0.21673542,54547.0,54546.0,0.001628]
[1725798683800,0.24408158,54547.0,54546.0,0.001628]
[1725798684241,0.27141489,54547.0,54546.0,0.001628]